bitfinex/quotes_BTCUSD_20240906
["timestamp","ask_amount","ask_price","bid_price","bid_amount"]
[1725598927713,1.16201858,56792.0,56791.0,0.05716056]
[1725598927914,1.16201858,56792.0,56791.0,0.026]
[1725598928177,1.16201858,56792.0,56791.0,0.05716056]
[1725598928403,1.16201858,56792.0,56791.0,0.026]
[1725598928608,1.16201858,56792.0,56791.0,0.05716056]
[1725598928760,1.16201858,56792.0,56791.0,0.026]
[1725598928974,1.16201858,56792.0,56791.0,0.05716056]
[1725598929736,1.16201858,56792.0,56791.0,0.026]
[1725598929945,1.16201858,56792.0,56791.0,0.05716056]
[1725598932494,1.16201858,56792.0,56791.0,0.026]
[1725598932915,1.16201858,56792.0,56791.0,0.05716056]
[1725598933126,1.16201858,56792.0,56791.0,0.026]
[1725598933332,1.16201858,56792.0,56791.0,0.05716056]
[1725598933541,1.16201858,56792.0,56791.0,0.026]
[1725598933745,1.16201858,56792.0,56791.0,0.05716056]
[1725598933952,1.16201858,56792.0,56791.0,0.026]
[1725598934136,1.16283458,56792.0,56791.0,0.05730402]
[1725598934356,1.16283458,56792.0,56791.0,0.026]
[1725598934560,1.16283458,56792.0,56791.0,0.05730402]
[1725598934771,1.09185761,56792.0,56791.0,0.05730402]
[1725598935195,1.09185739,56792.0,56791.0,0.05730402]
[1725598936529,1.14432762,56792.0,56791.0,0.05730402]
[1725598936744,0.99974381,56792.0,56791.0,0.026]
[1725598937182,1.02735487,56792.0,56791.0,0.05730402]
[1725598937602,0.67519287,56792.0,56791.0,0.05730402]
[1725598937811,0.32303087,56792.0,56791.0,0.05730402]
[1725598938015,0.67519287,56792.0,56791.0,0.05730402]
[1725598938226,0.67515287,56792.0,56791.0,0.05730402]
[1725598938449,0.32299087,56792.0,56791.0,0.05730402]
[1725598938649,0.32299149,56792.0,56791.0,0.05730402]
[1725598940576,0.14695049,56792.0,56791.0,0.05730402]
[1725598940783,0.04695049,56792.0,56791.0,0.23338802]
[1725598940979,0.04695049,56792.0,56791.0,0.05730402]
[1725598941995,0.04695264,56792.0,56791.0,0.05730402]
[1725598943699,0.04695264,56792.0,56791.0,0.23338802]
[1725598944420,0.04695264,56792.0,56791.0,0.58555602]
[1725598944632,0.14695264,56792.0,56791.0,0.58555602]
[1725598944856,0.04695264,56792.0,56791.0,0.58555602]
[1725598945447,0.03042706,56792.0,56791.0,0.23338802]
[1725598945655,0.04695319,56792.0,56791.0,0.23338802]
[1725598946505,0.04695319,56792.0,56791.0,0.23502002]
[1725598946815,0.04695512,56792.0,56791.0,0.23502002]
[1725598948655,0.04695512,56792.0,56791.0,0.94287736]
[1725598948834,0.04695512,56792.0,56791.0,1.09667736]
[1725598948969,0.0469566,56792.0,56791.0,1.09667736]
[1725598951665,0.0469566,56792.0,56791.0,0.21273602]
[1725598951869,0.0469566,56792.0,56791.0,0.23502002]
[1725598952077,0.0469566,56792.0,56791.0,0.58718802]
[1725598952287,0.03042706,56792.0,56791.0,0.23502002]
[1725598952492,0.04695617,56792.0,56791.0,0.23502002]
[1725598955567,0.03042706,56792.0,56791.0,0.23502002]
[1725598955789,0.04695674,56792.0,56791.0,0.23502002]
[1725598956928,0.04695674,56792.0,56791.0,0.05893602]
[1725598958473,0.04695674,56792.0,56791.0,0.23502002]
[1725598958945,0.04695282,56792.0,56791.0,0.23502002]
[1725598959953,0.28513564,56795.0,56791.0,0.23502002]
[1725598960219,0.176079,56793.0,56791.0,0.05893602]
[1725598960574,0.176076,56794.0,56793.0,0.018]
[1725598960788,0.176076,56794.0,56793.0,0.04929976]
[1725598961365,0.176076,56794.0,56793.0,0.04829976]
[1725598961805,0.171076,56794.0,56793.0,0.04829976]
[1725598961997,0.174076,56794.0,56793.0,0.04829976]
[1725598962877,0.176076,56794.0,56793.0,0.04829976]
[1725598963927,0.20368718,56794.0,56793.0,0.04829976]
[1725598966013,0.19868718,56794.0,56793.0,0.04829976]
[1725598966727,0.03261118,56794.0,56793.0,0.04829976]
[1725598966945,0.20868518,56794.0,56793.0,0.04829976]
[1725598969394,0.18189,56794.0,56793.0,0.04829976]
[1725598969814,0.23469732,56794.0,56793.0,0.04829976]
[1725598970236,0.58684632,56794.0,56793.0,0.04829976]
[1725598970423,0.529039,56794.0,56793.0,0.04829976]
[1725598970667,0.5818465,56794.0,56793.0,0.04829976]
[1725598970849,0.529039,56794.0,56793.0,0.04829976]
[1725598971091,0.60824999,56794.0,56793.0,0.04829976]
[1725598971296,0.529039,56794.0,56793.0,0.04829976]
[1725598971937,0.89771239,56794.0,56793.0,0.05629976]
[1725598972154,1.07322704,56794.0,56793.0,0.05629976]
[1725598972374,1.07322704,56794.0,56791.0,0.009632]
[1725598972375,0.880405,56792.0,56791.0,0.009632]
[1725598972614,1.43006351,56792.0,56791.0,0.026632]
[1725598972889,1.4465879,56792.0,56791.0,0.026632]
[1725598974236,1.9865879,56792.0,56791.0,0.026632]
[1725598975721,1.98658759,56792.0,56791.0,0.026632]
[1725598976843,1.93447006,56792.0,56791.0,0.026632]
[1725598977300,1.90687355,56792.0,56791.0,0.026632]
[1725598978017,1.89034947,56792.0,56791.0,0.026632]
[1725598978232,1.90687356,56792.0,56791.0,0.026632]
[1725598978449,1.36687356,56792.0,56791.0,0.026632]
[1725598980058,1.49884441,56792.0,56791.0,0.026632]
[1725598980288,1.36687356,56792.0,56791.0,0.026632]
[1725598980503,1.49884441,56792.0,56791.0,0.026632]
[1725598981395,1.36687356,56792.0,56791.0,0.026632]
[1725598981628,1.36686924,56792.0,56791.0,0.026632]
[1725598981847,1.35034947,56792.0,56791.0,0.026632]
[1725598982069,0.99818747,56792.0,56791.0,0.026632]
[1725598982304,1.10372835,56792.0,56791.0,0.026632]
[1725598982525,1.12024816,56792.0,56791.0,0.026632]
[1725598982747,1.01470728,56792.0,56791.0,0.026632]
[1725598983195,1.09386441,56792.0,56791.0,0.026632]
[1725598983662,1.01470728,56792.0,56791.0,0.026632]
[1725598984550,1.12024816,56792.0,56791.0,0.026632]
[1725598985209,1.01470728,56792.0,56791.0,0.026632]
[1725598987031,1.12021189,56792.0,56791.0,0.026632]
[1725598987270,1.12021288,56792.0,56791.0,0.026632]
[1725598987520,0.99818747,56792.0,56791.0,0.026632]
[1725598987973,1.10369307,56792.0,56791.0,0.026632]
[1725598988188,1.13130645,56792.0,56791.0,0.026632]
[1725598988833,1.4999855,56792.0,56791.0,0.026632]
[1725598989535,1.3944799,56792.0,56791.0,0.026632]
[1725598989775,1.39447986,56792.0,56791.0,0.026632]
[1725598990011,1.44416285,56792.0,56791.0,0.026632]
[1725598990253,1.46067941,56792.0,56791.0,0.026632]
[1725598991658,1.58231741,56792.0,56791.0,0.026632]
[1725598991900,1.66144407,56792.0,56791.0,0.026632]
[1725598992384,1.64366226,56792.0,56791.0,0.026632]
[1725598992595,1.56453494,56792.0,56791.0,0.026632]
[1725598993062,1.02453494,56792.0,56791.0,0.026632]
[1725598994172,1.10366226,56792.0,56791.0,0.026632]
[1725598996570,1.0871457,56792.0,56791.0,0.026632]
[1725598996819,1.10366566,56792.0,56791.0,0.026632]
[1725598997321,1.13004143,56792.0,56791.0,0.026632]
[1725598997551,1.13007424,56792.0,56791.0,0.026632]
[1725598998215,1.10369928,56792.0,56791.0,0.026632]
[1725598998471,1.02453834,56792.0,56791.0,0.026632]
[1725598998883,1.10369791,56792.0,56791.0,0.026632]
[1725599000018,1.54843624,56792.0,56791.0,0.009632]
[1725599000229,1.54843624,56792.0,56791.0,0.026632]
[1725599000230,2.00397797,56792.0,56791.0,0.026632]
[1725599000455,2.02049893,56792.0,56791.0,0.026632]
[1725599001126,2.09845102,56792.0,56791.0,0.026632]
[1725599001367,1.99290134,56792.0,56791.0,0.026632]
[1725599001560,2.15243169,56792.0,56791.0,0.026632]
[1725599002402,2.15243863,56792.0,56791.0,0.026632]
[1725599003110,1.99801201,56792.0,56791.0,0.026632]
[1725599003759,1.91884775,56792.0,56791.0,0.026632]
[1725599004440,1.99801598,56792.0,56791.0,0.026632]
[1725599004712,1.91884775,56792.0,56791.0,0.026632]
[1725599005155,1.99801855,56792.0,56791.0,0.026632]
[1725599005846,1.91884775,56792.0,56791.0,0.026632]
[1725599007229,1.85264775,56792.0,56791.0,0.026632]
[1725599009435,1.95821587,56792.0,56791.0,0.026632]
[1725599009892,1.85264775,56792.0,56791.0,0.026632]
[1725599010107,1.83612679,56792.0,56791.0,0.026632]
[1725599010335,1.85265122,56792.0,56791.0,0.026632]
[1725599010787,1.93184108,56792.0,56791.0,0.026632]
[1725599011736,1.85265177,56792.0,56791.0,0.026632]
[1725599012643,1.30265177,56792.0,56791.0,0.026632]
[1725599012872,1.38185575,56792.0,56791.0,0.026632]
[1725599013094,1.30265177,56792.0,56791.0,0.026632]
[1725599013315,1.33024805,56792.0,56791.0,0.026632]
[1725599013779,1.30265177,56792.0,56791.0,0.026632]
[1725599014689,1.43465841,56792.0,56791.0,0.026632]
[1725599015148,1.46225474,56792.0,56791.0,0.026632]
[1725599015329,1.50225474,56792.0,56791.0,0.026632]
[1725599015881,1.3702481,56792.0,56791.0,0.026632]
[1725599016348,1.3710641,56792.0,56791.0,0.026632]
[1725599016550,1.3310641,56792.0,56791.0,0.026632]
[1725599016985,1.46315706,56792.0,56791.0,0.026632]
[1725599017183,1.3310641,56792.0,56791.0,0.026632]
[1725599017358,1.3310641,56792.0,56791.0,0.009632]
[1725599017562,1.3310641,56792.0,56791.0,0.026632]
[1725599017770,1.33106831,56792.0,56791.0,0.026632]
[1725599019774,1.37106745,56792.0,56791.0,0.026632]
[1725599021086,1.47559464,56792.0,56791.0,0.026632]
[1725599021346,1.34347112,56792.0,56791.0,0.026632]
[1725599021587,1.12343551,56792.0,56791.0,0.181232]
[1725599021806,0.95130912,56792.0,56791.0,0.181232]
[1725599022020,0.95130912,56792.0,56791.0,0.23215004]
[1725599022691,0.7048498,56792.0,56791.0,0.23215004]
[1725599023579,0.59914712,56792.0,56791.0,0.23215004]
[1725599023920,0.14495771,56792.0,56791.0,0.23215004]
[1725599024542,0.22422332,56792.0,56791.0,0.40823404]
[1725599024776,0.09780678,56792.0,56791.0,1.11257004]
[1725599025247,0.04495771,56792.0,56791.0,1.11257004]
[1725599025682,0.04495771,56792.0,56791.0,0.76040204]
[1725599029262,0.04495771,56792.0,56791.0,0.40823404]
[1725599033826,0.04495771,56792.0,56791.0,0.76040204]
[1725599034671,0.04495771,56792.0,56791.0,1.11257004]
[1725599034893,0.04495689,56792.0,56791.0,1.11257004]
[1725599036197,0.04495689,56792.0,56791.0,0.23215004]
[1725599036431,0.57319989,56792.0,56791.0,0.23215004]
[1725599036949,0.57319958,56792.0,56791.0,0.23215004]
[1725599038443,0.57320193,56792.0,56791.0,0.23215004]
[1725599039968,0.54558855,56792.0,56791.0,0.23215004]
[1725599040859,0.89775055,56792.0,56791.0,0.23215004]
[1725599041811,0.89775024,56792.0,56791.0,0.23215004]
[1725599042257,0.91498568,56792.0,56791.0,0.23215004]
[1725599043764,0.89775024,56792.0,56791.0,0.23215004]
[1725599047718,0.89774984,56792.0,56791.0,0.07755004]
[1725599047943,0.89774984,56792.0,56791.0,0.026632]
[1725599048185,0.89774984,56792.0,56791.0,0.07755997]
[1725599048409,0.89774984,56792.0,56791.0,0.026632]
[1725599048616,0.89774984,56792.0,56791.0,0.07755997]
[1725599048829,0.89774984,56792.0,56791.0,0.093032]
[1725599049040,0.89774984,56792.0,56791.0,0.23285997]
[1725599049683,0.000816,56792.0,56791.0,0.23285997]
[1725599049903,0.176897,56792.0,56791.0,0.23285997]
[1725599050141,0.176078,56793.0,56792.0,0.0664]
[1725599050370,0.528234,56793.0,56792.0,0.0744]
[1725599050620,0.528234,56793.0,56792.0,0.14232424]
[1725599050841,0.54476376,56793.0,56792.0,0.14232424]
[1725599051298,0.01752976,56793.0,56792.0,0.4108266]
[1725599051525,0.01752976,56793.0,56792.0,0.40730524]
[1725599052005,0.01752976,56793.0,56792.0,0.75946724]
[1725599052460,0.002,56793.0,56792.0,0.75946724]
[1725599052680,0.01853052,56793.0,56792.0,0.75946724]
[1725599053583,0.01853061,56793.0,56792.0,0.75946724]
[1725599054047,0.01853061,56793.0,56792.0,1.11162924]
[1725599055911,0.01753061,56793.0,56792.0,1.11162924]
[1725599056136,0.01653061,56793.0,56792.0,1.11162924]
[1725599056352,0.01653061,56793.0,56792.0,1.11862924]
[1725599056353,0.01753061,56793.0,56792.0,1.11862924]
[1725599056571,0.01853061,56793.0,56792.0,1.12562924]
[1725599056773,0.01653061,56793.0,56792.0,1.11162924]
[1725599056993,0.000816,56794.0,56793.0,0.88039]
[1725599057246,0.01734744,56794.0,56793.0,1.05069]
[1725599057467,0.01734744,56794.0,56793.0,1.10161051]
[1725599059054,0.01834744,56794.0,56793.0,1.11361051]
[1725599059275,0.01934744,56794.0,56793.0,1.12661051]
[1725599060427,0.01934744,56794.0,56793.0,1.13461051]
[1725599062908,0.002816,56794.0,56793.0,1.13461051]
[1725599063358,0.01934749,56794.0,56793.0,1.13461051]
[1725599066753,0.002816,56794.0,56793.0,1.13461051]
[1725599066973,0.0193474,56794.0,56793.0,1.13461051]
[1725599070032,0.0193475,56794.0,56793.0,1.13461051]
[1725599076900,0.01934584,56794.0,56793.0,1.13461051]
[1725599077130,0.01934584,56794.0,56793.0,1.48676651]
[1725599081252,0.01934584,56794.0,56793.0,2.86881765]
[1725599081478,0.01934584,56794.0,56793.0,2.89181765]
[1725599081768,0.01934584,56794.0,56793.0,2.89381765]
[1725599082218,0.176032,56808.0,56807.0,0.017]
[1725599082455,0.176032,56808.0,56807.0,0.025]
[1725599082688,0.176032,56808.0,56807.0,0.07586833]
[1725599082909,0.02760512,56808.0,56807.0,0.07586833]
[1725599083327,0.20363612,56808.0,56807.0,0.07586833]
[1725599083552,0.03360512,56808.0,56807.0,0.07586833]
[1725599083775,0.03360512,56808.0,56807.0,0.60397133]
[1725599084450,0.03360512,56808.0,56807.0,0.95604033]
[1725599084670,0.03360512,56808.0,56807.0,1.02114033]
[1725599084889,0.03360512,56808.0,56807.0,1.10614033]
[1725599085848,0.03060512,56808.0,56807.0,1.10614033]
[1725599086305,0.02760512,56808.0,56807.0,1.10614033]
[1725599088318,0.02756512,56808.0,56807.0,1.10614033]
[1725599088536,0.02838112,56808.0,56807.0,0.75607133]
[1725599088976,0.02838112,56808.0,56807.0,1.10814033]
[1725599089484,0.000816,56808.0,56807.0,1.10814033]
[1725599090413,0.000816,56808.0,56807.0,1.11114033]
[1725599094113,0.01735727,56808.0,56807.0,1.11114033]
[1725599095241,0.01735727,56808.0,56807.0,1.46320933]
[1725599096544,0.01735727,56808.0,56807.0,1.11114033]
[1725599096968,0.01735764,56808.0,56807.0,1.11114033]
[1725599100856,0.01735764,56808.0,56807.0,1.11277233]
[1725599101190,0.01735852,56808.0,56807.0,1.11277233]
[1725599104380,0.01735852,56808.0,56807.0,1.46684133]
[1725599105788,0.01735852,56808.0,56807.0,2.71834133]
[1725599106255,0.01735551,56808.0,56807.0,2.71834133]
[1725599106489,0.01735551,56808.0,56807.0,2.71634133]
[1725599108462,0.01735551,56808.0,56807.0,2.71834133]
[1725599109417,0.000816,56808.0,56807.0,2.71834133]
[1725599109656,0.01735492,56808.0,56807.0,2.71834133]
[1725599110103,0.01735486,56808.0,56807.0,2.71634133]
[1725599110772,0.03389401,56808.0,56807.0,2.71634133]
[1725599111223,0.01735515,56808.0,56807.0,2.71634133]
[1725599111797,0.000816,56808.0,56807.0,2.72634133]
[1725599112080,0.000816,56808.0,56807.0,3.10141033]
[1725599112329,0.01735446,56808.0,56807.0,3.10141033]
[1725599112581,0.01735446,56808.0,56807.0,3.12141033]
[1725599113000,0.01735446,56808.0,56807.0,3.11841033]
[1725599113476,0.01835446,56808.0,56807.0,3.12841033]
[1725599113685,0.01835446,56808.0,56807.0,3.13541033]
[1725599114150,0.01835743,56808.0,56807.0,3.13041033]
[1725599114834,0.01835743,56808.0,56807.0,3.14141033]
[1725599115998,0.001816,56808.0,56807.0,3.14141033]
[1725599116451,0.0183611,56808.0,56807.0,3.14141033]
[1725599117139,0.30596779,56826.0,56825.0,0.016]
[1725599117373,0.42251387,56826.0,56825.0,0.016]
[1725599117596,0.42251387,56826.0,56825.0,0.06680127]
[1725599117840,0.42251387,56826.0,56825.0,0.025]
[1725599118068,0.42251387,56826.0,56825.0,0.07580127]
[1725599118069,0.59848887,56826.0,56825.0,0.07580127]
[1725599118285,0.59844887,56826.0,56825.0,0.07580127]
[1725599118970,0.60244887,56826.0,56825.0,0.07680127]
[1725599119442,0.60654887,56826.0,56825.0,0.07680127]
[1725599119665,0.60654887,56826.0,56825.0,0.07780127]
[1725599119666,0.61154887,56826.0,56825.0,0.07780127]
[1725599120107,0.61154887,56826.0,56825.0,0.027]
[1725599120626,0.61154908,56826.0,56825.0,0.07780127]
[1725599120842,0.61154908,56826.0,56825.0,0.027]
[1725599121080,0.61154908,56826.0,56825.0,0.07780127]
[1725599121515,0.30562129,56826.0,56825.0,0.07780127]
[1725599121745,0.65757229,56826.0,56825.0,0.07780127]
[1725599121971,0.65347229,56826.0,56825.0,0.07780127]
[1725599124294,0.636926,56826.0,56825.0,0.07780127]
[1725599124533,0.65347229,56826.0,56825.0,0.07780127]
[1725599125463,0.65428829,56826.0,56825.0,0.07780127]
[1725599127327,0.637742,56826.0,56825.0,0.07780127]
[1725599127564,0.65428831,56826.0,56825.0,0.07780127]
[1725599130973,0.65428836,56826.0,56825.0,0.07780127]
[1725599131887,0.65428836,56826.0,56825.0,0.0585733]
[1725599132322,0.65428836,56826.0,56825.0,0.027]
[1725599135414,0.7070167,56826.0,56825.0,0.027]
[1725599136126,1.47919198,56826.0,56825.0,0.027]
[1725599136362,1.48439947,56826.0,56825.0,0.027]
[1725599136592,1.58985616,56826.0,56825.0,0.027]
[1725599137037,1.55582153,56826.0,56825.0,0.027]
[1725599137278,1.52941114,56826.0,56825.0,0.027]
[1725599137739,1.55582153,56826.0,56825.0,0.027]
[1725599137963,1.55582153,56826.0,56825.0,0.028632]
[1725599138414,2.02777285,56826.0,56825.0,0.028632]
[1725599138854,1.46122453,56826.0,56825.0,0.028632]
[1725599139061,1.55583407,56826.0,56825.0,0.028632]
[1725599139275,1.47777281,56826.0,56825.0,0.028632]
[1725599141305,1.46122449,56826.0,56825.0,0.028632]
[1725599141535,1.47777281,56826.0,56825.0,0.028632]
[1725599141756,2.02777281,56826.0,56825.0,0.028632]
[1725599144270,2.15984276,56826.0,56825.0,0.028632]
[1725599144678,2.07553453,56826.0,56825.0,0.028632]
[1725599144952,2.06783453,56826.0,56825.0,0.028632]
[1725599145783,1.51783453,56826.0,56825.0,0.028632]
[1725599145994,0.46198153,56826.0,56825.0,0.097432]
[1725599146214,0.73351294,56826.0,56825.0,0.0602053]
[1725599146440,1.43741494,56826.0,56825.0,0.028632]
[1725599146660,1.52553437,56826.0,56825.0,0.028632]
[1725599146870,1.52550412,56826.0,56825.0,0.011632]
[1725599147077,1.42818997,56826.0,56825.0,0.011632]
[1725599147989,1.42318997,56826.0,56825.0,0.010632]
[1725599148203,1.419188,56826.0,56825.0,0.009632]
[1725599148414,1.424188,56826.0,56825.0,0.009632]
[1725599148621,1.428188,56826.0,56825.0,0.009632]
[1725599148833,1.428188,56826.0,56825.0,0.001632]
[1725599149291,1.67062994,56826.0,56825.0,0.001632]
[1725599150676,2.02258057,56826.0,56825.0,0.001632]
[1725599151896,2.02258051,56826.0,56825.0,0.001632]
[1725599152110,2.02255843,56826.0,56825.0,0.001632]
[1725599153208,1.86413857,56826.0,56825.0,0.001632]
[1725599154099,2.02255843,56826.0,56825.0,0.001632]
[1725599155645,1.86413857,56826.0,56825.0,0.001632]
[1725599156930,2.02255843,56826.0,56825.0,0.001632]
[1725599158036,1.86413857,56826.0,56825.0,0.001632]
[1725599158261,2.02255843,56826.0,56825.0,0.001632]
[1725599158724,1.86413857,56826.0,56825.0,0.001632]
[1725599158998,2.02255843,56826.0,56825.0,0.001632]
[1725599161205,2.02252041,56826.0,56825.0,0.001632]
[1725599162273,1.86413857,56826.0,56825.0,0.001632]
[1725599162510,2.66252041,56826.0,56825.0,0.001632]
[1725599162739,0.5,56820.0,56809.0,0.008]
[1725599162993,0.535975,56810.0,56809.0,0.008]
[1725599163210,0.535975,56810.0,56807.0,0.001632]
[1725599163211,0.352063,56808.0,56807.0,0.001632]
[1725599163443,1.35425209,56808.0,56807.0,0.001632]
[1725599163672,1.83269013,56808.0,56807.0,0.001632]
[1725599163904,3.05379869,56808.0,56807.0,1e-06]
[1725599164132,1.232521,56794.0,56791.0,0.009632]
[1725599164384,1.75390535,56794.0,56791.0,0.009632]
[1725599164592,1.70120769,56794.0,56791.0,0.001632]
[1725599165755,1.78017271,56794.0,56791.0,0.001632]
[1725599166184,1.70120769,56794.0,56791.0,0.001632]
[1725599166428,1.70220769,56794.0,56791.0,0.001632]
[1725599166859,1.70120769,56794.0,56791.0,0.001632]
[1725599167097,1.75480869,56794.0,56791.0,0.001632]
[1725599167311,1.70620769,56794.0,56791.0,0.001632]
[1725599167519,1.70520769,56794.0,56791.0,0.001632]
[1725599167943,1.71020769,56794.0,56791.0,0.001632]
[1725599168160,1.71020769,56794.0,56793.0,0.04911678]
[1725599168385,1.71019957,56794.0,56793.0,0.04911678]
[1725599168822,1.74403659,56794.0,56793.0,0.04911678]
[1725599169049,1.72750702,56794.0,56793.0,0.04911678]
[1725599169259,1.72750702,56794.0,56793.0,0.001632]
[1725599170360,2.08955602,56794.0,56793.0,0.001632]
[1725599170603,0.5,56782.0,56779.0,0.4672]
[1725599170853,1.232955,56774.0,56771.0,0.52650515]
[1725599171065,1.232955,56774.0,56767.0,0.0862]
[1725599171066,2.20175946,56774.0,56767.0,0.008]
[1725599171504,2.24621146,56774.0,56767.0,0.008]
[1725599172865,2.26366021,56774.0,56767.0,0.008]
[1725599173088,2.69370175,56774.0,56766.0,0.4672]
[1725599173517,2.70470175,56774.0,56766.0,0.4672]
[1725599173734,2.72122796,56774.0,56766.0,0.4672]
[1725599174187,2.72222796,56774.0,56766.0,0.4672]
[1725599174408,2.7267553,56774.0,56766.0,0.4672]
[1725599174615,2.7267553,56774.0,56763.0,0.017]
[1725599174616,2.2357303,56774.0,56763.0,0.017]
[1725599174823,2.2487303,56774.0,56763.0,0.017]
[1725599175663,2.2487303,56774.0,56763.0,0.025]
[1725599175879,2.2607303,56774.0,56763.0,0.025]
[1725599176723,2.6112303,56774.0,56763.0,0.025]
[1725599176942,2.6132303,56774.0,56763.0,0.025]
[1725599177617,2.6112303,56774.0,56763.0,0.025]
[1725599177842,2.65578062,56774.0,56763.0,0.025]
[1725599178308,2.63925328,56774.0,56773.0,0.001592]
[1725599178590,2.65578253,56774.0,56773.0,0.001592]
[1725599179044,2.65778253,56774.0,56773.0,0.001592]
[1725599181519,2.68278253,56774.0,56773.0,0.001592]
[1725599181967,2.68078253,56774.0,56773.0,0.001592]
[1725599185770,2.66425328,56774.0,56773.0,0.001592]
[1725599186000,2.66425328,56774.0,56768.0,1e-06]
[1725599186001,1.944672,56769.0,56768.0,1e-06]
[1725599186268,2.295672,56769.0,56768.0,1e-06]
[1725599186501,2.45675118,56769.0,56768.0,1e-06]
[1725599186731,2.79252632,56769.0,56768.0,1e-06]
[1725599187203,2.80905273,56769.0,56768.0,1e-06]
[1725599187417,2.82005273,56769.0,56768.0,1e-06]
[1725599188068,2.92755273,56769.0,56768.0,1e-06]
[1725599189214,2.92555273,56769.0,56768.0,1e-06]
[1725599189430,2.79540316,56769.0,56768.0,1e-06]
[1725599189892,2.78750316,56769.0,56768.0,1e-06]
[1725599191077,2.78550316,56769.0,56768.0,1e-06]
[1725599191754,2.78750316,56769.0,56768.0,1e-06]
[1725599191967,3.32390316,56769.0,56768.0,1e-06]
[1725599192196,3.13800316,56769.0,56768.0,1e-06]
[1725599192416,3.13600316,56769.0,56768.0,1e-06]
[1725599192867,3.13600379,56769.0,56768.0,1e-06]
[1725599193061,3.13800379,56769.0,56768.0,1e-06]
[1725599193535,2.08548,56765.0,56764.0,0.067361]
[1725599193755,2.18548,56765.0,56764.0,0.067361]
[1725599194188,2.20200768,56765.0,56764.0,0.067361]
[1725599195484,2.20900768,56765.0,56764.0,0.067361]
[1725599196209,2.19948,56765.0,56764.0,0.067361]
[1725599196425,2.21601042,56765.0,56764.0,0.067361]
[1725599197081,1.36368142,56765.0,56764.0,0.155561]
[1725599197553,1.36368265,56765.0,56764.0,0.155561]
[1725599198870,1.35668265,56765.0,56764.0,0.155561]
[1725599199255,1.36368265,56765.0,56764.0,0.155561]
[1725599199507,1.35668265,56765.0,56764.0,0.155561]
[1725599199736,1.35168265,56765.0,56764.0,0.155561]
[1725599200172,1.35468265,56765.0,56764.0,0.155561]
[1725599201224,1.70701165,56765.0,56764.0,0.155561]
[1725599201468,1.70701165,56765.0,56760.0,0.001634]
[1725599201469,0.880885,56761.0,56760.0,0.067634]
[1725599201714,0.880885,56761.0,56760.0,0.11570451]
[1725599201715,1.70212465,56761.0,56760.0,0.11570451]
[1725599202909,1.70212465,56761.0,56760.0,0.11770451]
[1725599203130,1.70211743,56761.0,56760.0,0.11770451]
[1725599204725,1.70211743,56761.0,56760.0,0.069634]
[1725599205218,1.72973317,56761.0,56760.0,0.069634]
[1725599205441,1.72973317,56761.0,56760.0,0.11770451]
[1725599208162,1.72973317,56761.0,56760.0,0.069634]
[1725599213212,1.70211743,56761.0,56760.0,0.069634]
[1725599213436,1.72973082,56761.0,56760.0,0.069634]
[1725599215400,1.782313,56761.0,56760.0,0.069634]
[1725599215839,1.72973082,56761.0,56760.0,0.069634]
[1725599216317,1.8086051,56761.0,56760.0,0.069634]
[1725599216595,1.72973183,56761.0,56760.0,0.069634]
[1725599217395,1.02502383,56761.0,56760.0,0.164234]
[1725599217630,1.10417103,56761.0,56760.0,0.164234]
[1725599218158,1.02502383,56761.0,56760.0,0.164234]
[1725599218364,1.13018819,56761.0,56760.0,0.164234]
[1725599219527,1.15647928,56761.0,56760.0,0.164234]
[1725599219772,1.07657873,56761.0,56760.0,0.164234]
[1725599219989,1.02502405,56761.0,56760.0,0.164234]
[1725599220944,1.37737805,56761.0,56760.0,0.164234]
[1725599222402,1.02502405,56761.0,56760.0,0.164234]
[1725599222640,1.08647399,56761.0,56760.0,0.164234]
[1725599222900,0.99741579,56761.0,56760.0,0.164234]
[1725599223144,1.07661078,56761.0,56760.0,0.164234]
[1725599223418,1.07661641,56761.0,56760.0,0.164234]
[1725599223622,1.45535878,56761.0,56760.0,0.164234]
[1725599223950,1.34976979,56761.0,56760.0,0.164234]
[1725599224386,1.45535109,56761.0,56760.0,0.164234]
[1725599224589,1.34976979,56761.0,56760.0,0.164234]
[1725599225083,1.45535109,56761.0,56760.0,0.164234]
[1725599225293,1.4388203,56761.0,56760.0,0.164234]
[1725599225510,1.45534591,56761.0,56760.0,0.164234]
[1725599225733,1.34976461,56761.0,56760.0,0.164234]
[1725599225953,0.99741061,56761.0,56760.0,0.164234]
[1725599226170,1.10299191,56761.0,56760.0,0.164234]
[1725599226375,1.45534591,56761.0,56760.0,0.164234]
[1725599226542,1.34976461,56761.0,56760.0,0.164234]
[1725599226749,1.45534591,56761.0,56760.0,0.164234]
[1725599226981,1.34976461,56761.0,56760.0,0.164234]
[1725599227423,1.10299191,56761.0,56760.0,0.164234]
[1725599227974,1.45534591,56761.0,56760.0,0.164234]
[1725599228627,0.99741061,56761.0,56760.0,0.164234]
[1725599228855,0.64505661,56761.0,56760.0,0.181234]
[1725599229071,0.34548962,56761.0,56760.0,0.181234]
[1725599229519,0.34548962,56761.0,56760.0,0.22930451]
[1725599230234,0.64505661,56761.0,56760.0,0.22930451]
[1725599230441,0.69784362,56761.0,56760.0,0.22930451]
[1725599230655,0.64505661,56761.0,56760.0,0.22930451]
[1725599231520,0.99741061,56761.0,56760.0,0.22930451]
[1725599231748,1.07659112,56761.0,56760.0,0.22930451]
[1725599231969,1.07659112,56761.0,56760.0,0.181234]
[1725599232199,1.06006551,56761.0,56760.0,0.181234]
[1725599232467,1.40227477,56761.0,56760.0,0.181234]
[1725599233125,1.40227565,56761.0,56760.0,0.181234]
[1725599234275,1.34949946,56761.0,56760.0,0.181234]
[1725599234496,1.40254405,56761.0,56760.0,0.181234]
[1725599235158,1.40254344,56761.0,56760.0,0.181234]
[1725599235819,1.38601708,56761.0,56760.0,0.181234]
[1725599236031,1.40254343,56761.0,56760.0,0.181234]
[1725599238527,1.34976572,56761.0,56760.0,0.181234]
[1725599238993,1.4025438,56761.0,56760.0,0.181234]
[1725599239238,1.40254492,56761.0,56760.0,0.181234]
[1725599241527,1.34976572,56761.0,56760.0,0.181234]
[1725599241766,1.334056,56761.0,56760.0,0.181234]
[1725599241987,1.35058601,56761.0,56760.0,0.181234]
[1725599242223,1.36711637,56761.0,56760.0,0.181234]
[1725599242466,1.35058636,56761.0,56760.0,0.181234]
[1725599243001,1.35058636,56761.0,56760.0,0.164234]
[1725599243216,1.35058743,56761.0,56760.0,0.181234]